Cogmind - Beta 17.1 @@@ ROGUE MODE // 2026.08.22 @ 20:01:30 Player: kite Result: Self-destructed Performance ------------- Evolutions (6) 3000 Regions Visited (22) 4400 Robots Destroyed (327) 1635 Value Destroyed (11975) 11975 Prototype IDs (53) 1060 Alien Tech Used (1) 200 Bonus (1625) 1625 TOTAL SCORE: 23895 Bonus ------- High Alert Combat Kills 987 Follower Combat Kills 1006 Entered Garrisons 400 Entered DSFs 500 Aligned with FarCom 300 Acquired ECA 300 Met Zhirov 300 Friendly Fire -2168 Cogmind --------- Core Integrity 893/1150 Matter 300/300 Energy 520/520 System Corruption 2% Temperature Cool (0) Movement Rolling (160) Ox6 Location -4/Factory Parts ------- > --- POWER (1) -------- Light Antimatter Reactor > --- PROPULSION (6) --- Wheel Wheel > --- UTILITY (8) ------ Advanced Coolant Injector Huge Storage Unit Energy Well Improved Trap Scanner Advanced Actuator Array Improved Power Shielding Improved Dynamic Insulation System > --- WEAPON (4) ------- Power Maul (fused) Power Maul Scythe > --- INVENTORY (25) --- Heavy Antimatter Reactor Armored Heavy Treads Advanced Power Amplifier Advanced Power Amplifier Advanced Coolant Injector Advanced Energy Well (500) YI-UF0's Bottomless Matter Pit (1500) Improved Power Shielding Authchip [Propulsion] Authchip [Propulsion] Advanced Drone Bay (2/2) Transdimensional Reconstructor Firepult Improved Plasma Cutter Maul Power Maul Peak State ------------ > --- POWER ------------ Improved Deuterium Engine > --- PROPULSION ------- Improved Heavy Treads Improved Heavy Treads > --- UTILITY ---------- Huge Storage Unit Energy Well IFF Parser Improved Medium Armor Plating Medium Reflective Plating Focal Shield Improved Thermal Defense Suite Mini Drone Bay > --- WEAPON ----------- Heavy Shock Bomb Launcher Heavy Shock Bomb Launcher Power Maul Axe > --- INVENTORY -------- Armored Heavy Treads Compact Battery Energy Well Advanced Energy Well YI-UF0's Bottomless Matter Pit IFF Parser Encrypted Comm Array Actuator Array Actuator Array EM Shield Authchip [Propulsion] Authchip [Propulsion] Improved Dynamic Insulation System Advanced Drone Bay Firepult Heavy Shock Bomb Launcher Long-range Missile Launcher Improved Plasma Cutter Power Maul Power Maul Power Maul Scythe [Rating: 102] Favorites ----------- Power Heavy Ion Engine Engine Heavy Ion Engine Power Core Light Nuclear Core Reactor Antimatter Reactor Propulsion Light Treads Treads Light Treads Leg Aluminum Leg Wheel Armored Huge Wheel Utility Humpback Device Actuator Array Storage Humpback Processor Armor Integrity Analyzer Hackware Hacking Suite Protection Improved Light Armor Plating Weapon Power Maul Energy Gun Salvaging Laser Launcher Heavy Shock Bomb Launcher Impact Weapon Power Maul Slashing Weapon Katana Special Melee Weapon Datajack Build | -11 -10 -10 -9 -9 -9 -8 -8 -8 -8 -8 -7 -7 -6 -6 -5 -5 -5 -5 -5 -5 -4 -4 ------- Run | Yrd Mat Min Mat Min Exi Min Mat Gar Mat Sto Fac Gar Fac DSF Fac Was Fac Upp Upp Zhi Pro Fac Slots Evolved 12 | . . . 2 . . . 2 . . . 2 . 2 . 2 . . . . . . 2 Power . | . . . . . . . . . . . . . . . . . . . . . . . Propulsion 4 | . . . 1 . . . . . . . 1 . . . . . . . . . . 2 Utility 6 | . . . 1 . . . 1 . . . 1 . 1 . 2 . . . . . . . Weapon 2 | . . . . . . . 1 . . . . . 1 . . . . . . . . . Parts Attached 217 | 8 15 . 12 3 6 . 31 2 20 8 3 10 2 12 33 3 16 7 2 3 10 11 Power 27 | 2 2 . 1 . . . 3 . 3 5 . 2 . 3 1 1 1 . . 2 . 1 Engine 19 | 2 2 . 1 . . . 3 . 3 4 . . . 2 . . 1 . . 1 . . Core 3 | . . . . . . . . . . 1 . 1 . 1 . . . . . . . . Reactor 5 | . . . . . . . . . . . . 1 . . 1 1 . . . 1 . 1 Propulsion 56 | 2 4 . 5 3 1 . 10 . 7 1 . 1 . 1 8 2 3 . . . 5 3 Treads 32 | 2 2 . 5 . 1 . 9 . 3 . . . . . . 2 3 . . . 5 . Leg 2 | . 2 . . . . . . . . . . . . . . . . . . . . . Wheel 22 | . . . . 3 . . 1 . 4 1 . 1 . 1 8 . . . . . . 3 Hover . | . . . . . . . . . . . . . . . . . . . . . . . Flight . | . . . . . . . . . . . . . . . . . . . . . . . Utility 93 | 1 3 . 5 . 3 . 9 . 8 . 3 5 1 8 20 . 10 6 2 1 1 7 Device 41 | . 2 . 1 . . . 2 . 4 . . 3 1 4 9 . 7 3 1 . 1 3 Storage 12 | 1 1 . 1 . 3 . 1 . . . . . . 1 2 . 1 . . 1 . . Processor 5 | . . . . . . . . . . . 1 1 . 1 . . 1 . 1 . . . Hackware 9 | . . . 1 . . . 1 . . . 2 . . 1 4 . . . . . . . Protection 26 | . . . 2 . . . 5 . 4 . . 1 . 1 5 . 1 3 . . . 4 Artifact . | . . . . . . . . . . . . . . . . . . . . . . . Weapon 41 | 3 6 . 1 . 2 . 9 2 2 2 . 2 1 . 4 . 2 1 . . 4 . Energy Gun 6 | 3 3 . . . . . . . . . . . . . . . . . . . . . Energy Cannon . | . . . . . . . . . . . . . . . . . . . . . . . Ballistic Gun . | . . . . . . . . . . . . . . . . . . . . . . . Ballistic Cannon . | . . . . . . . . . . . . . . . . . . . . . . . Launcher 11 | . 1 . . . . . 1 2 . 1 . . . . 1 . 2 1 . . 2 . Special Weapon . | . . . . . . . . . . . . . . . . . . . . . . . Impact Weapon 14 | . . . 1 . 1 . 7 . 1 . . . . . 3 . . . . . 1 . Slashing Weapon 9 | . 2 . . . . . 1 . 1 1 . 2 1 . . . . . . . 1 . Piercing Weapon . | . . . . . . . . . . . . . . . . . . . . . . . Special Melee Weapon 1 | . . . . . 1 . . . . . . . . . . . . . . . . . Unidentified Prototypes 10 | . . . 1 . 1 . 1 . . 1 . . . . 2 . 1 . . 3 . . Corrupted Parts 8 | . . . . . . . . . . 1 . . . . . . . . . 1 6 . System Corruption 65 | . . . . . . . . . . 7 . . . . . . . . . 9 49 . Parts Lost 76 | . 1 1 4 . . . 7 . 9 2 . 3 . 6 6 . 11 . 2 . 15 9 Power 10 | . 1 . . . . . . . 2 1 . 1 . 2 . . 1 . 1 . 1 . Propulsion 24 | . . . 3 . . . 2 . 3 1 . 1 . 1 3 . 2 . . . 5 3 Utility 28 | . . 1 1 . . . 2 . 3 . . . . 2 2 . 7 . . . 5 5 Weapon 14 | . . . . . . . 3 . 1 . . 1 . 1 1 . 1 . 1 . 4 1 Highest Loss Streak 6 | . 1 1 3 . . . 3 . 2 1 . 3 . 5 2 . 4 . 1 . 6 4 To Critical Strikes 2 | . . . . . . . . . . . . . . . . . 1 . . . 1 . Average Backups 22 | 1 7 9 12 16 19 23 28 29 27 26 27 24 23 23 26 20 19 21 21 21 15 13 Power . | . . . . 1 . 1 . . . . 1 1 1 . 1 1 . . 1 . . . Propulsion 5 | . 4 6 5 6 6 6 8 9 5 3 2 4 4 3 4 4 3 1 2 2 1 1 Utility 10 | . . 2 2 3 6 9 11 12 15 16 16 13 14 16 15 8 8 10 10 10 7 8 Weapon 5 | . 2 1 2 5 6 6 6 7 6 6 6 5 4 2 4 6 5 7 7 7 4 2 Tool/Special . | . . . . . . . . . . . . . . . . . . . . . . . Unused Backups 61 | . 2 . 3 . . . 10 . 8 . . 2 . 2 15 1 4 2 1 1 . 10 Power 6 | . 1 . 3 . . . 2 . . . . . . . . . . . . . . . Propulsion 10 | . . . . . . . 2 . 2 . . . . . 3 1 1 . . . . 1 Utility 38 | . . . . . . . 6 . 5 . . 2 . 2 12 . 2 2 1 1 . 5 Weapon 4 | . 1 . . . . . . . . . . . . . . . 1 . . . . 2 Tool/Special 3 | . . . . . . . . . 1 . . . . . . . . . . . . 2 Average Slot Usage (%) 85 | . 95 87 91 99 93 88 88 90 86 70 68 75 79 77 83 81 83 87 87 86 78 73 Engine 6 | . 12 14 11 11 11 11 9 9 8 4 7 2 . 3 3 . 2 5 4 3 1 . Treads 14 | . 8 28 32 28 7 . 25 27 23 . . . . . . 8 10 11 11 11 12 4 Wheel 6 | . . . . 4 25 33 1 . 2 17 14 15 13 12 17 2 . . . . . 4 Device 8 | . 12 2 . . . . 3 . 7 . . 3 12 12 14 23 22 22 20 16 18 20 Storage 9 | . 14 14 11 11 10 11 9 9 9 9 7 7 6 8 5 5 5 11 11 11 11 10 Hackware 3 | . . . 4 11 11 11 1 9 . . . 7 . . 6 5 3 . . . . . Protection 7 | . . . 10 11 5 . 12 9 8 8 6 3 5 4 4 5 6 10 11 11 3 6 Impact Weapon 10 | . . . 3 7 . 11 21 17 17 9 7 . . . 4 11 10 9 10 11 11 15 Slashing Weapon 11 | . 7 27 18 14 11 11 4 7 8 17 15 19 26 25 18 11 9 7 10 11 8 5 Peak Build Rating 102 | 6 10 10 16 17 22 20 35 34 43 45 55 64 70 71 76 89 93 102 99 98 96 76 Average Rating 46 | 4 9 7 12 16 18 20 29 33 36 43 54 58 69 62 68 84 85 96 92 92 73 71 On Entrance 47 | . 6 10 7 16 17 20 20 34 34 43 45 53 63 70 68 76 89 85 94 88 94 67 Avg Prop Armor Cover (%) 7 | . . . . . . . 8 . . . . . . . 4 . . . 9 . 4 12 Naked Turns . | . . . . . . . . . . . . . . . . . . . . . . . Heaviest Build 330 | 14 20 18 57 53 213 213 224 225 233 237 236 226 236 236 330 138 141 145 130 134 140 140 Greatest Support 150 | 40 40 40 60 60 60 48 60 60 60 40 56 56 56 56 56 140 150 150 150 150 150 46 Greatest Overweight (x) 44 | . 4 . 1 3 4 4 13 3 18 8 4 4 4 7 9 2 1 . 1 . 2 44 Average Overweight (x) 2 | . . . . . 2 4 3 3 3 5 3 3 4 3 4 . . . . . 1 6 Largest Inventory Capacity 35 | 8 10 10 20 20 35 35 35 35 35 35 35 35 35 35 35 25 25 25 25 25 25 25 Average Capacity 29 | 7 9 10 17 20 27 35 35 35 35 35 35 35 35 35 33 25 25 25 25 25 25 25 Most Carried 35 | 2 10 9 17 20 25 25 35 35 35 35 35 35 35 35 35 25 25 25 25 25 25 19 Average Carried 27 | 1 8 9 12 16 21 25 33 34 34 34 34 34 33 31 32 24 23 24 24 24 18 16 Final Capacity 35 | 8 10 10 20 20 35 35 35 35 35 35 35 35 35 35 25 25 25 25 25 25 25 25 Final Carried 35 | 2 9 9 16 20 25 25 35 35 35 35 34 35 35 35 25 25 23 25 24 25 13 19 Class Distribution -------------------- 42% | Hauler-Mutant 15% | Hauler-Gladiator 13% | Gladiator 13% | Mutant 9% | Scavenger-Gladiator 4% | Scavenger-Mutant Dominant Class ---------------- Mutant | -10/Materials Mutant | -10/Mines Mutant | -9/Materials Mutant | -9/Mines Hauler-Mutant | -9/Exiles Hauler-Mutant | -8/Mines Hauler-Mutant | -8/Materials Hauler-Mutant | -8/Garrison Hauler-Mutant | -8/Materials Hauler-Mutant | -8/Storage Hauler-Gladiator | -7/Factory Hauler-Gladiator | -7/Garrison Hauler-Gladiator | -6/Factory Hauler-Gladiator | -6/DSF Hauler-Gladiator | -5/Factory Gladiator | -5/Waste Gladiator | -5/Factory Scavenger-Gladiator | -5/Upper Caves Scavenger-Gladiator | -5/Upper Caves Scavenger-Gladiator | -5/Zhirov Gladiator | -4/Proximity Caves Gladiator | -4/Factory Resources | -11 -10 -10 -9 -9 -9 -8 -8 -8 -8 -8 -7 -7 -6 -6 -5 -5 -5 -5 -5 -5 -4 -4 ----------- Run | Yrd Mat Min Mat Min Exi Min Mat Gar Mat Sto Fac Gar Fac DSF Fac Was Fac Upp Upp Zhi Pro Fac Matter Collected 9113 | 225 195 . 245 40 1014 385 1295 364 607 442 108 747 . 124 856 29 367 460 132 99 971 408 Remotely 4 | . . . . . . . . . . . . . . 4 . . . . . . . . Salvage Created 14429 | . 454 10 795 151 . 214 2364 84 954 947 155 1502 . 443 1688 . 1325 429 140 99 1924 751 Parts 591 | . 33 4 42 8 . 5 68 25 50 56 5 69 . 20 77 . 39 20 7 1 41 21 Haulers Intercepted 13 | . 1 . 1 . . . 4 . 3 2 . . . . 1 . 1 . . . . . Recyclers Shooed 3 | . . . . . . 1 1 . . 1 . . . . . . . . . . . . Parts Field Recycled . | . . . . . . . . . . . . . . . . . . . . . . . Retrieved Matter . | . . . . . . . . . . . . . . . . . . . . . . . Parts Self-Destructed 3 | . . . . . . . . . . . . . . . . . . . . 1 2 . Prevented 51 | . . . . . . . . . . . . . . . . . . 16 7 . 28 . Parts Restored . | . . . . . . . . . . . . . . . . . . . . . . . Kills | -11 -10 -10 -9 -9 -9 -8 -8 -8 -8 -8 -7 -7 -6 -6 -5 -5 -5 -5 -5 -5 -4 -4 ------- Run | Yrd Mat Min Mat Min Exi Min Mat Gar Mat Sto Fac Gar Fac DSF Fac Was Fac Upp Upp Zhi Pro Fac Combat Hostiles Destroyed 231 | . 10 3 15 . . . 40 14 23 21 2 23 . 8 19 . 12 4 2 . 25 10 Melee 96 | . . . 9 . . . 25 . 8 11 2 7 . 5 12 . 9 . . . 2 6 Guns 7 | . 7 . . . . . . . . . . . . . . . . . . . . . AOE 78 | . 3 3 4 . . . . 13 8 8 . 15 . 3 5 . 1 . . . 15 . Classes Destroyed 22 | . 6 . 7 . . . . . 1 . . 2 . 2 1 . . 3 . . . . Worker 16 | . 1 . 2 . . 3 1 . 2 2 . . . . 3 . 1 . . . . 1 Builder 18 | . . . 2 . . . 1 . 2 4 . . . . 6 . 1 . . . . 2 Tunneler 3 | . 2 . 1 . . . . . . . . . . . . . . . . . . . Hauler 13 | . 1 . 1 . . . 4 . 3 2 . . . . 1 . 1 . . . . . Recycler 18 | . . . 1 2 . 2 5 . 1 1 1 . . . 3 . 1 . . . . 1 Mechanic 2 | . . . 1 . . . . . 1 . . . . . . . . . . . . . Operator 4 | . . . 2 . . . . . . 1 . . . . 1 . . . . . . . Watcher 11 | . 1 . 1 . . . 4 . 1 2 . . . . 2 . . . . . . . Swarmer 63 | . 3 3 4 . . . 3 16 10 3 . 11 . . 5 . . . . . 5 . Grunt 92 | . 7 . 6 . . . 25 . 6 11 . 7 . 3 5 . 6 . . . 10 6 Brawler 10 | . . . 1 . . . 3 . . 1 . . . . . . 1 . . . 4 . Duelist 6 | . . . 1 . . . 1 . . 1 . . . 1 1 . . . . . 1 . Protector 2 | . . . . . . . . . . . . 1 . . . . . . . . 1 . Sentry 32 | . . . 3 . . . 9 1 5 4 1 2 . . 1 . 2 . . . 2 2 Demolisher 1 | . . . . . . . . . . . . 1 . . . . . . . . . . Specialist 2 | . . . . . . . . . . . . . . 2 . . . . . . . . Hunter 13 | . . . . . . . . . 2 1 1 1 . 1 2 . 1 2 2 . . . Programmer 11 | . . . . . . . . . . . . . . . 5 . 2 . . . 2 2 Heavy 1 | . . . . . . . . . . . . . . 1 . . . . . . . . Behemoth 1 | . . . . . . . . . . . . . . . . . . 1 . . . . Decomposer 3 | . . . . . . . . . . . . . . . . . . 3 . . . . Samaritan 1 | . . . . . . . . . . . . . . . . . . 1 . . . . Thug 3 | . . . . . . . . . . . . . . . . . 3 . . . . . Butcher 1 | . . . . . . . . . . . . . . . . . 1 . . . . . Martyr 3 | . . . . . . . . . . . . . . . . . 3 . . . . . Mutant 1 | . . . . . . . . . . . . . . . . . . 1 . . . . Best Kill Streak 14 | . 6 3 6 1 . 3 5 5 7 14 2 12 . 6 8 . 3 1 2 . 11 5 Combat Bots Only 12 | . 3 3 4 . . . 4 5 6 8 1 12 . 6 5 . 3 1 2 . 11 4 Max Kills in Single Turn 5 | . 4 2 5 1 . 1 1 4 2 3 1 4 . 3 4 . 3 1 1 . 3 1 Gunslinging . | . . . . . . . . . . . . . . . . . . . . . . . Exploded 4 | . 3 2 4 . . . . 4 2 3 . 4 . 3 4 . 1 . . . 3 . Melee 1 | . . . 1 . . . 1 . 1 1 1 1 . 1 1 . 1 . . . 1 1 Uniques/NPCs Destroyed 1 | . . . . 1 . . . . . . . . . . . . . . . . . . YI-UF0 (-9/Mines) Combat | -11 -10 -10 -9 -9 -9 -8 -8 -8 -8 -8 -7 -7 -6 -6 -5 -5 -5 -5 -5 -5 -4 -4 -------- Run | Yrd Mat Min Mat Min Exi Min Mat Gar Mat Sto Fac Gar Fac DSF Fac Was Fac Upp Upp Zhi Pro Fac Hostile Shots Fired 1370 | . 32 10 62 7 . . 206 15 186 78 35 78 . 58 133 . 183 42 30 . 139 76 Missed 381 | . 9 3 12 4 . . 62 2 48 21 13 28 . 15 36 . 44 15 7 . 42 20 Hits 989 | . 23 7 50 3 . . 144 13 138 57 22 50 . 43 97 . 139 27 23 . 97 56 Melee 30 | . . . 7 . . . 6 . . 4 . . . 6 1 . . . . . 6 . Projectile 959 | . 23 7 43 3 . . 138 13 138 53 22 50 . 37 96 . 139 27 23 . 91 56 AOE 12 | . . . . 3 . . . . . . . 5 . . 2 . 1 . . . . 1 Critical Strikes 53 | . . . 5 . . . 7 1 4 2 1 2 . 4 3 . 8 . . . 8 8 Actively Blocked 3 | . . . 1 . . . 1 . . . . . . 1 . . . . . . . . Part Disruptions 1 | . . . . . . . . . . . . . . . . . . . 1 . . . Damage Taken 18003 | . 333 85 901 83 . . 2034 304 1617 1082 212 833 . 1247 1800 . 3088 498 282 . 2280 1324 Core 1853 | . 69 26 96 17 . . 219 10 125 81 . 111 . 263 135 . 222 . . . 222 257 Absorbed by Shields 642 | . . . . . . . 140 . 212 . . 31 . . 80 . 179 . . . . . Reduced by Siege Mode 26 | . . . . . . . . . . . . . . . . . . 5 4 . 17 . Redirected to Shielding 110 | . . . 11 4 . . 15 . . . . . . 30 . . . . . . . 50 Ignored by Resistances 706 | . . . . . . . . . . . . . . . 17 . 264 106 40 . 279 . Regen/Repaired (Parts) 1217 | . . . . . . . 321 . 309 224 . . . . 320 . 43 . . . . . Core Remaining (%) 64 | 100 . 62 . . . 71 . . . 20 . 84 . 69 . . . . . . 42 . Volleys Fired 198 | 1 45 3 3 . . . 9 11 6 18 . 16 . 3 3 . 6 13 7 . 54 . Largest 2 | 1 2 1 1 . . . 1 2 1 1 . 2 . 1 1 . 1 2 2 . 1 . Hottest 92 | 50 60 30 30 . . . 30 72 36 36 . 69 . 36 36 . 43 92 92 . 46 . Shots Fired 254 | 1 89 3 3 . . . 9 13 6 19 . 23 . 3 3 . 6 25 7 . 44 . Gun 89 | 1 88 . . . . . . . . . . . . . . . . . . . . . Cannon . | . . . . . . . . . . . . . . . . . . . . . . . Launcher 165 | . 1 3 3 . . . 9 13 6 19 . 23 . 3 3 . 6 25 7 . 44 . Special . | . . . . . . . . . . . . . . . . . . . . . . . Kinetic . | . . . . . . . . . . . . . . . . . . . . . . . Thermal 89 | 1 88 . . . . . . . . . . . . . . . . . . . . . Explosive 89 | . 1 3 3 . . . 9 13 6 17 . 10 . . . . 6 . . . 21 . Electromagnetic 76 | . . . . . . . . . . 2 . 13 . 3 3 . . 25 7 . 23 . Robot Hit Streak 10 | . 10 1 2 . . . 2 5 5 6 . 3 . 3 1 . 2 4 2 . 10 . Robot Miss Streak 4 | . 4 2 1 . . . 1 1 . 1 . 4 . 1 2 . 2 2 3 . 3 . Penetration Max . | . . . . . . . . . . . . . . . . . . . . . . . Secondary Targets . | . . . . . . . . . . . . . . . . . . . . . . . Shots Hit Robots 765 | . 65 2 44 5 4 8 115 7 70 68 6 58 . 26 76 . 73 20 2 3 42 71 Core Hits 382 | . 25 3 22 2 . 3 44 19 22 36 2 41 . 13 36 . 42 4 1 1 50 16 Critical Kills 12 | . . . . . . . 4 . 1 . . . . . 1 . 3 . . . 1 2 Critical Parts Destroyed 53 | . . . 1 . . 2 14 1 3 7 1 . . . 5 . 4 3 . . 1 11 Critical Strikes 107 | . . . 1 . . 2 19 1 7 10 1 3 . 5 14 . 16 5 . . 2 21 Smash 66 | . . . 1 . . 2 18 1 4 7 1 . . . 7 . 7 3 . . 2 13 Sever 41 | . . . . . . . 1 . 3 3 . 3 . 5 7 . 9 2 . . . 8 Melee Attacks 933 | . 3 1 73 5 4 9 154 7 99 72 11 70 1 30 137 . 109 13 2 4 38 91 Impact 422 | . . . 10 . . 7 135 2 71 31 5 . . . 42 . 49 5 . 1 13 51 Slashing 507 | . 3 1 63 5 . 2 19 5 28 41 6 70 1 30 95 . 60 8 2 3 25 40 Piercing . | . . . . . . . . . . . . . . . . . . . . . . . Sneak Attacks 110 | . 3 1 14 3 4 4 13 . 13 6 1 3 . 1 18 . 13 5 . . . 8 Combat Hostiles 5 | . . . . . . . . . . . . 2 . . . . . . . . . 3 Follow-up Attacks 204 | . . . 11 1 . 1 24 2 16 12 1 12 . 9 34 . 26 1 . 1 12 41 Damage Inflicted 40430 | . 854 215 1882 163 . 469 5301 1234 3856 3746 290 4244 . 900 3784 . 4532 1066 207 200 4299 3188 Guns 549 | . 549 . . . . . . . . . . . . . . . . . . . . . Cannons . | . . . . . . . . . . . . . . . . . . . . . . . Explosions 12077 | . 165 171 372 . . . 660 1135 826 1479 . 1194 . 284 270 . 1440 518 207 . 3356 . Melee 27769 | . 140 44 1510 163 . 469 4634 99 3030 2267 290 3050 . 616 3514 . 3064 548 . 200 943 3188 Ramming 35 | . . . . . . . 7 . . . . . . . . . 28 . . . . . Kinetic . | . . . . . . . . . . . . . . . . . . . . . . . Thermal 1072 | . 549 . . . . . . . . . . 22 . 131 46 . . . . . 324 . Explosive 8109 | . 165 171 372 . . . 660 1135 826 1360 . 700 . . . . 1440 . . . 1280 . Electromagnetic 3445 | . . . . . . . . . . 119 . 472 . 153 224 . . 518 207 . 1752 . Impact 13871 | . . . 404 . . 447 4286 37 2101 1196 191 . . . 923 . 1307 314 . . 443 2222 Slashing 13898 | . 140 44 1106 163 . 22 348 62 929 1071 99 3050 . 616 2591 . 1757 234 . 200 500 966 Piercing . | . . . . . . . . . . . . . . . . . . . . . . . Highest Corruption 90 | . 1 1 . . . . 14 14 14 21 . 1 . . 3 3 19 20 21 30 90 2 Average Corruption 18 | . 1 1 . . . . 13 14 14 18 . 1 . . 2 3 7 19 20 28 75 1 Corruption Purged 2 | . . . . . . . . . . . . . . . 2 . . . . . . . Corruption Blocked . | . . . . . . . . . . . . . . . . . . . . . . . Effects 581 | . 3 1 . . . . 153 45 122 42 . 7 . . 8 9 22 36 27 10 95 1 Message Errors 158 | . . . . . . . 46 6 35 13 . 1 . . 3 4 7 11 6 2 24 . Matter Fused 136 | . 1 . . . . . 41 11 24 9 . 2 . . 4 3 4 5 6 4 22 . Heat Flow Errors 67 | . . 1 . . . . 19 5 16 4 . . . . . 1 2 5 4 2 8 . Energy Discharges 71 | . . . . . . . 12 10 15 6 . 2 . . 1 . 3 5 1 . 16 . Parts Rejected 10 | . . . . . . . 7 . 1 . . . . . . . 1 1 . . . . Parts Fused 10 | . . . . . . . 1 1 2 . . . . . . 1 . . 1 . 4 . Data Loss (minor) 73 | . 1 . . . . . 16 9 16 7 . . . . . . 5 5 6 1 7 . Data Loss (major) 24 | . . . . . . . 7 2 7 1 . 1 . . . . . . 1 1 4 . Misfires 4 | . . . . . . . . 1 1 1 . . . . . . . 1 . . . . Alerts 13 | . 1 . . . . . 3 . 3 1 . 1 . . . . . 2 1 . . 1 Misdirections 2 | . . . . . . . 1 . 1 . . . . . . . . . . . . . Weapon Failures 13 | . . . . . . . . . 1 . . . . . . . . 1 1 . 10 . Overload Shots . | . . . . . . . . . . . . . . . . . . . . . . . Overflow Damage 6165 | . 21 63 355 7 . 205 1367 23 754 585 129 138 . . 725 . 410 329 . . 355 699 Projectiles . | . . . . . . . . . . . . . . . . . . . . . . . Explosions 332 | . 15 49 55 . . . 1 17 49 39 . 22 . . 1 . 11 . . . 73 . Melee 5833 | . 6 14 300 7 . 205 1366 6 705 546 129 116 . . 724 . 399 329 . . 282 699 Knockbacks 48 | . . . 1 . . 2 22 . 7 2 1 . . . 2 . 6 . . . . 5 Impact 46 | . . . 1 . . 2 20 . 7 2 1 . . . 2 . 6 . . . . 5 Kinetic . | . . . . . . . . . . . . . . . . . . . . . . . Secondary 2 | . . . . . . . 2 . . . . . . . . . . . . . . . Self-Inflicted Damage 1468 | . 7 29 153 . . . 32 131 151 163 . 108 . 29 . . 221 41 . . 403 . Shots 48 | . 1 1 4 . . . 2 3 5 5 . 5 . 2 . . 4 3 . . 13 . Rammed 2 | . . . . . . . 1 . . . . . . . . . 1 . . . . . Targets Rammed 2 | . . . . . . . 1 . . . . . . . . . 1 . . . . . Kicked . | . . . . . . . . . . . . . . . . . . . . . . . Crushed . | . . . . . . . . . . . . . . . . . . . . . . . Highest Temperature 280 | 10 7 95 5 . . . 277 268 280 273 . 13 . 30 2 86 242 236 201 171 248 10 Average Temperature 76 | 7 2 48 3 . . . 91 92 99 57 . 7 . 17 1 50 66 74 79 84 62 10 Received Heat Transfer 3603 | . 123 . 192 6 . . 940 63 304 378 30 81 . 72 113 . 763 69 . . 234 235 Siege Activations 6 | . . . . . . . . . . . . . . . . . . 2 2 . 2 . Total Turns 237 | . . . . . . . . . . . . . . . . . . 54 102 . 81 . Longest Duration 59 | . . . . . . . . . . . . . . . . . . 36 58 . 59 . Martial Activations . | . . . . . . . . . . . . . . . . . . . . . . . Shielding Activations . | . . . . . . . . . . . . . . . . . . . . . . . Robots Disrupted . | . . . . . . . . . . . . . . . . . . . . . . . Combat Hostiles . | . . . . . . . . . . . . . . . . . . . . . . . Robots Corrupted 70 | . . . 2 . . 2 23 1 11 4 1 1 . . 4 . 2 4 2 . 8 5 Combat Hostiles 49 | . . . 2 . . . 15 1 7 2 . 1 . . 2 . 1 4 2 . 8 4 Parts Fried 106 | . . . 9 . . 4 28 1 12 1 1 3 . . 3 . 4 10 5 . 20 5 Impact Corruptions 174 | . . . 6 . . 5 52 2 26 16 4 . . . 12 . 14 8 . . 4 25 Robots Melted . | . . . . . . . . . . . . . . . . . . . . . . . Combat Hostiles . | . . . . . . . . . . . . . . . . . . . . . . . Parts Melted 7 | . 4 . . . . . . . . 1 . . . . 1 . . . . . . 1 Heat Transferred 1900 | . 1550 . . . . . . . . . . 50 . 50 50 . . . . . 200 . Parts Sabotaged . | . . . . . . . . . . . . . . . . . . . . . . . Parts Stolen . | . . . . . . . . . . . . . . . . . . . . . . . Parts Stripped . | . . . . . . . . . . . . . . . . . . . . . . . Power Chain Reactions 7 | . . . . . . . . . . . . 2 . 1 1 . . . . . 3 . Alert | -11 -10 -10 -9 -9 -9 -8 -8 -8 -8 -8 -7 -7 -6 -6 -5 -5 -5 -5 -5 -5 -4 -4 ------- Run | Yrd Mat Min Mat Min Exi Min Mat Gar Mat Sto Fac Gar Fac DSF Fac Was Fac Upp Upp Zhi Pro Fac Maximum Alert Level 4 | . . . 1 . . . 2 3 2 2 1 3 2 2 1 . 4 . . . . . Low Security (%) 50 | 100 100 100 74 100 . 100 72 . 10 8 64 17 . . 76 100 5 . . . . 100 Level 1 21 | . . . 25 . . . 4 5 76 19 35 21 . 50 23 . . . . . . . Level 2 15 | . . . . . . . 22 19 13 72 . 17 100 49 . . 8 . . . . . Level 3 7 | . . . . . . . . 74 . . . 43 . . . . 10 . . . . . Level 4 4 | . . . . . . . . . . . . . . . . . 75 . . . . . Level 5 . | . . . . . . . . . . . . . . . . . . . . . . . High Security . | . . . . . . . . . . . . . . . . . . . . . . . Max Security . | . . . . . . . . . . . . . . . . . . . . . . . Sterilizations 1 | . . . . . . . . . . . . . . 1 . . . . . . . . Peak Influence 1334 | . 105 96 263 85 . 88 572 989 481 610 253 1063 557 442 364 79 1334 . . . . 99 Initial 557 | . . 7 5 85 . . 12 364 481 178 253 122 557 327 231 79 . . . . . . Average 296 | . 41 48 107 8 . 54 195 780 275 467 185 564 513 385 135 12 1089 . . . . 36 Influence Increases 9600 | . 343 98 606 10 . 133 1286 625 743 803 82 971 1 215 738 . 1909 90 50 5 585 307 Destroy 0b10 Robot/C 5120 | . 200 60 300 . . 60 820 300 460 420 40 500 . 180 380 . 620 60 40 . 480 200 Destroy 0b10 Robot/NC 485 | . 25 . 55 10 . 25 75 . 50 60 5 35 . . 80 . 35 . . 5 5 20 Destroy Leader 1010 | . 44 10 84 . . 10 206 20 138 108 20 20 . 30 76 . 114 30 10 . 40 50 Allied During Kill 502 | . . . . . . 8 2 8 . . . 12 . 4 . . 468 . . . . . Successful Hack 160 | . 7 . 10 . . . 24 . 11 . 12 12 . . 48 . 22 . . . . 14 Select Force Hacks 90 | . 60 . 30 . . . . . . . . . . . . . . . . . . . Disable Machine 465 | . . 15 45 . . 15 . 15 15 90 . 75 . . 45 . 150 . . . . . Anti-Garrison Action 500 | . . . . . . . . 150 . . . 200 . . . . 150 . . . . . Destroy Structure 758 | . 7 13 37 . . . 39 117 54 95 5 87 1 1 64 . 230 . . . . 8 Partial Spotted 30 | . . . 15 . . . . . . . . . . . . . 15 . . . . . Lose Combat Pursuer 480 | . . . 30 . . 15 120 15 15 30 . 30 . . 45 . 105 . . . 60 15 Influence Decreases 9532 | . 322 103 402 230 . 100 758 197 1308 670 464 83 596 241 954 226 716 832 401 105 585 239 Entered New Map 3123 | . . 14 11 135 . . 21 197 508 246 304 53 506 141 211 147 . 442 87 100 . . Time Decay 5267 | . 312 87 361 95 . 100 647 . 710 404 160 . 90 . 533 79 426 380 294 5 405 179 Lost Part 712 | . 10 2 30 . . . 70 . 90 20 . 30 . 60 60 . 110 . 20 . 150 60 Lost Ally 280 | . . . . . . . 20 . . . . . . 40 . . 180 10 . . 30 . Purge Threat 150 | . . . . . . . . . . . . . . . 150 . . . . . . . Squads Dispatched 46 | . 3 . 3 . . . 3 . 4 6 1 . . 2 7 . 9 . . . 1 7 Investigation 9 | . 2 . 1 . . . 1 . 1 1 . . . . . . 2 . . . . 1 Extermination 9 | . . . . . . . . . . . 1 . . . 4 . 2 . . . . 2 Reinforcement 14 | . 1 . 2 . . . 2 . 2 2 . . . 2 3 . . . . . . . Assault 5 | . . . . . . . . . . . . . . . . . 4 . . . 1 . Garrison 9 | . . . . . . . . . 1 3 . . . . . . 1 . . . . 4 Intercept . | . . . . . . . . . . . . . . . . . . . . . . . Searches Triggered . | . . . . . . . . . . . . . . . . . . . . . . . Construction Impeded 2 | . . . . . . . . . . 1 . . . . 1 . . . . . . . Haulers Reinforced . | . . . . . . . . . . . . . . . . . . . . . . . Active Scanning Responses . | . . . . . . . . . . . . . . . . . . . . . . . Cargo Convoy Interrupts 1 | . . . . . . . . . . . . . . . 1 . . . . . . . Stealth | -11 -10 -10 -9 -9 -9 -8 -8 -8 -8 -8 -7 -7 -6 -6 -5 -5 -5 -5 -5 -5 -4 -4 --------- Run | Yrd Mat Min Mat Min Exi Min Mat Gar Mat Sto Fac Gar Fac DSF Fac Was Fac Upp Upp Zhi Pro Fac Distress Signals 22 | . 2 . 2 . . . 10 . 1 7 . . . . . . . . . . . . Communications Jammed 171 | . . . . . . . . . . . . . . . 14 . 157 . . . . . Distress Signals 170 | . . . . . . . . . . . . . . . 14 . 156 . . . . . Times Spotted 357 | . 13 3 28 6 . 3 70 7 34 30 2 22 . 9 30 . 44 4 3 . 30 19 Peak Tracking Total 11 | . 4 3 7 3 . 3 6 3 5 5 1 7 . 4 5 . 8 1 2 . 11 4 Tactical Retreats 29 | . . . 2 3 . 1 6 1 1 2 . 2 . . 1 . 6 . . . 3 1 Traps | -11 -10 -10 -9 -9 -9 -8 -8 -8 -8 -8 -7 -7 -6 -6 -5 -5 -5 -5 -5 -5 -4 -4 ------- Run | Yrd Mat Min Mat Min Exi Min Mat Gar Mat Sto Fac Gar Fac DSF Fac Was Fac Upp Upp Zhi Pro Fac Traps Triggered 15 | . 2 . . . . . 1 1 . 1 . 6 . 1 1 . 1 . . . . 1 Indirectly 1 | . . . . . . . . . . . . 1 . . . . . . . . . . Trap Hack Attempts . | . . . . . . . . . . . . . . . . . . . . . . . Triggered . | . . . . . . . . . . . . . . . . . . . . . . . Disarmed . | . . . . . . . . . . . . . . . . . . . . . . . Reprogrammed . | . . . . . . . . . . . . . . . . . . . . . . . Reused . | . . . . . . . . . . . . . . . . . . . . . . . Traps Extracted . | . . . . . . . . . . . . . . . . . . . . . . . Installed . | . . . . . . . . . . . . . . . . . . . . . . . Triggered . | . . . . . . . . . . . . . . . . . . . . . . . Machines | -11 -10 -10 -9 -9 -9 -8 -8 -8 -8 -8 -7 -7 -6 -6 -5 -5 -5 -5 -5 -5 -4 -4 ---------- Run | Yrd Mat Min Mat Min Exi Min Mat Gar Mat Sto Fac Gar Fac DSF Fac Was Fac Upp Upp Zhi Pro Fac Machines Disabled 39 | . . 1 3 . . 1 . 2 1 6 . 9 . . 3 . 11 . 1 . 1 . Max in Single Turn 2 | . . 1 2 . . . . 1 1 1 . 2 . . 1 . 1 . 1 . 1 . Garrison Access 2 | . . . . . . . . . 1 . . . . . . . 1 . . . . . Garrison Relay 5 | . . . . . . . . 1 . . . 4 . . . . . . . . . . Machines Repaired . | . . . . . . . . . . . . . . . . . . . . . . . Machines Dismantled . | . . . . . . . . . . . . . . . . . . . . . . . Machines Sabotaged . | . . . . . . . . . . . . . . . . . . . . . . . Overloaded Fab Kills . | . . . . . . . . . . . . . . . . . . . . . . . Hacking | -11 -10 -10 -9 -9 -9 -8 -8 -8 -8 -8 -7 -7 -6 -6 -5 -5 -5 -5 -5 -5 -4 -4 --------- Run | Yrd Mat Min Mat Min Exi Min Mat Gar Mat Sto Fac Gar Fac DSF Fac Was Fac Upp Upp Zhi Pro Fac Machines Accessed 47 | . 4 . 4 . 2 . 8 . 5 1 1 1 1 . 10 . 5 . . 4 . 1 Terminals 22 | . 2 . 3 . . . 5 . 2 . . 1 1 . 4 . 3 . . . . 1 Fabricators 2 | . . . . . . . . . . . . . . . 1 . 1 . . . . . Repair Stations 7 | . . . . . . . 1 . 1 1 . . . . 3 . 1 . . . . . Recycling Units 3 | . 2 . 1 . . . . . . . . . . . . . . . . . . . Scanalyzers 4 | . . . . . . . 1 . 1 . . . . . 2 . . . . . . . Garrison Access 3 | . . . . . . . 1 . 1 . 1 . . . . . . . . . . . Total Hacks 127 | . 6 . 9 . 5 . 21 . 13 3 2 1 1 . 34 . 14 . . 17 . 1 Successful 78 | . 5 . 4 . 5 . 13 . 6 2 1 1 1 . 15 . 7 . . 17 . 1 Failed 48 | . 1 . 5 . . . 8 . 7 1 1 . . . 18 . 7 . . . . . Catastrophic 6 | . . . 1 . . . 1 . 1 . . . . . 3 . . . . . . . Database Lockouts 1 | . . . . . . . . . . . . . . . 1 . . . . . . . Manual 61 | . 6 . 9 . 1 . 15 . 7 . . . . . 12 . 10 . . . . 1 Terminals 61 | . 4 . 8 . . . 14 . 7 . . 1 1 . 16 . 9 . . . . 1 Fabricators 4 | . . . . . . . . . . . . . . . 2 . 2 . . . . . Repair Stations 19 | . . . . . . . 2 . 2 3 . . . . 9 . 3 . . . . . Recycling Units 3 | . 2 . 1 . . . . . . . . . . . . . . . . . . . Scanalyzers 14 | . . . . . . . 4 . 3 . . . . . 7 . . . . . . . Garrison Access 4 | . . . . . . . 1 . 1 . 2 . . . . . . . . . . . Terminal Hacks 42 | . 3 . 3 . 5 . 5 . 1 . . 1 1 . 3 . 3 . . 17 . . Record 9 | . . . . . 4 . . . . . . . . . . . . . . 5 . . Part Schematic 6 | . 2 . . . . . . . . . . . . . . . . . . 4 . . Robot Analysis 4 | . . . . . . . . . . . . . . . . . . . . 4 . . Prototype ID Bank 4 | . . . . . . . . . . . . . . . . . . . . 4 . . Open DSF 1 | . . . . . . . . . . . . . 1 . . . . . . . . . Branch Access Points 1 | . . . . . . . . . . . . . . . . . 1 . . . . . Emergency Access Points 1 | . . . . . . . . . . . . 1 . . . . . . . . . . Unreport Threat 1 | . . . . . . . . . . . . . . . 1 . . . . . . . Hauler Manifests 2 | . . . 1 . . . 1 . . . . . . . . . . . . . . . Registered Components 5 | . . . 1 . . . 1 . 1 . . . . . 1 . 1 . . . . . Zone Layout 7 | . 1 . 1 . . . 3 . . . . . . . 1 . 1 . . . . . Proto ID Catalog 1 | . . . . . 1 . . . . . . . . . . . . . . . . . Fabricator Hacks 1 | . . . . . . . . . . . . . . . . . 1 . . . . . Load Schematic 1 | . . . . . . . . . . . . . . . . . 1 . . . . . Repair Station Hacks 11 | . . . . . . . 2 . 2 2 . . . . 5 . . . . . . . Scan Component 6 | . . . . . . . 1 . 1 1 . . . . 3 . . . . . . . Repair 5 | . . . . . . . 1 . 1 1 . . . . 2 . . . . . . . Recycling Unit Hacks . | . . . . . . . . . . . . . . . . . . . . . . . Scanalyzer 11 | . . . . . . . 4 . 2 . . . . . 5 . . . . . . . Insert Component 2 | . . . . . . . 1 . . . . . . . 1 . . . . . . . Analyze 2 | . . . . . . . 1 . . . . . . . 1 . . . . . . . Retrieve Study 7 | . . . . . . . 2 . 2 . . . . . 3 . . . . . . . Garrison Access Hacks 3 | . . . . . . . 1 . 1 . 1 . . . . . . . . . . . Unlock Access 2 | . . . . . . . 1 . . . 1 . . . . . . . . . . . Seal Access 1 | . . . . . . . . . 1 . . . . . . . . . . . . . Unauthorized Hacks 10 | . 2 . 1 . . . 1 . . . . . . . 2 . 3 . . . . 1 Terminals 5 | . . . . . . . 1 . . . . . . . 2 . 1 . . . . 1 Botnet 5 | . . . . . . . 1 . . . . . . . 2 . 1 . . . . 1 Fabricators 1 | . . . . . . . . . . . . . . . . . 1 . . . . . Recompile 1 | . . . . . . . . . . . . . . . . . 1 . . . . . Repair Stations 1 | . . . . . . . . . . . . . . . . . 1 . . . . . Patch 1 | . . . . . . . . . . . . . . . . . 1 . . . . . Recycling Units 3 | . 2 . 1 . . . . . . . . . . . . . . . . . . . Tunnel 3 | . 2 . 1 . . . . . . . . . . . . . . . . . . . Scanalyzers . | . . . . . . . . . . . . . . . . . . . . . . . Garrison Access . | . . . . . . . . . . . . . . . . . . . . . . . Data Cores Recovered . | . . . . . . . . . . . . . . . . . . . . . . . Used . | . . . . . . . . . . . . . . . . . . . . . . . Hacking Detections 29 | . 1 . 3 . . . 5 . 4 1 . 1 1 . 8 . 4 . . . . 1 Full Trace Events 1 | . . . . . . . . . . 1 . . . . . . . . . . . . Feedback Events . | . . . . . . . . . . . . . . . . . . . . . . . Feedback Blocked . | . . . . . . . . . . . . . . . . . . . . . . . Robot Schematics Acquired . | . . . . . . . . . . . . . . . . . . . . . . . Robots Built . | . . . . . . . . . . . . . . . . . . . . . . . Authchips . | . . . . . . . . . . . . . . . . . . . . . . . Time . | . . . . . . . . . . . . . . . . . . . . . . . Total Robot Build Rating . | . . . . . . . . . . . . . . . . . . . . . . . Part Schematics Acquired 8 | . 2 . . . . . 1 . . . . . . . 1 . . . . 4 . . Parts Built . | . . . . . . . . . . . . . . . . . . . . . . . Authchips . | . . . . . . . . . . . . . . . . . . . . . . . Time . | . . . . . . . . . . . . . . . . . . . . . . . Total Part Build Rating . | . . . . . . . . . . . . . . . . . . . . . . . Part Studies Acquired 7 | . . . . . . . 2 . 2 . . . . . 3 . . . . . . . Parts Repaired 5 | . . . . . . . 1 . 1 1 . . . . 2 . . . . . . . Time 202 | . . . . . . . 26 . 26 26 . . . . 124 . . . . . . . Parts Recycled . | . . . . . . . . . . . . . . . . . . . . . . . Recycled Matter . | . . . . . . . . . . . . . . . . . . . . . . . Retrieved Matter . | . . . . . . . . . . . . . . . . . . . . . . . Retrieved Components . | . . . . . . . . . . . . . . . . . . . . . . . Parts Scanalyzed 2 | . . . . . . . 1 . . . . . . . 1 . . . . . . . Part Schematics Acquired 2 | . . . . . . . 1 . . . . . . . 1 . . . . . . . Parts Damaged . | . . . . . . . . . . . . . . . . . . . . . . . Bothacking | -11 -10 -10 -9 -9 -9 -8 -8 -8 -8 -8 -7 -7 -6 -6 -5 -5 -5 -5 -5 -5 -4 -4 ------------ Run | Yrd Mat Min Mat Min Exi Min Mat Gar Mat Sto Fac Gar Fac DSF Fac Was Fac Upp Upp Zhi Pro Fac Used RIF Installer . | . . . . . . . . . . . . . . . . . . . . . . . Robots Hacked 4 | . . . . . 4 . . . . . . . . . . . . . . . . . Non-combat 3 | . . . . . 3 . . . . . . . . . . . . . . . . . Combat 1 | . . . . . 1 . . . . . . . . . . . . . . . . . Robot Hacks Applied 4 | . . . . . 4 . . . . . . . . . . . . . . . . . parse_system 4 | . . . . . 4 . . . . . . . . . . . . . . . . . Relay Couplers Released 24 | . . . . . . . . 5 . . . 17 . . . . 2 . . . . . Machine Destruction 24 | . . . . . . . . 5 . . . 17 . . . . 2 . . . . . Fabnet Peak Effective % . | . . . . . . . . . . . . . . . . . . . . . . . Robots Rewired 5 | . . . . . . . . 3 . . . . . . . . . . . . 2 . Allies Hacked 1 | . . . . . . . . . . . . . . . . . . . . . 1 . Hacks Repelled . | . . . . . . . . . . . . . . . . . . . . . . . Allies | -11 -10 -10 -9 -9 -9 -8 -8 -8 -8 -8 -7 -7 -6 -6 -5 -5 -5 -5 -5 -5 -4 -4 -------- Run | Yrd Mat Min Mat Min Exi Min Mat Gar Mat Sto Fac Gar Fac DSF Fac Was Fac Upp Upp Zhi Pro Fac Total Allies 30 | . . . . 3 . . . 3 . . . 2 . . . 20 . . . . 2 . Largest Group 20 | . . . . 3 3 3 2 3 . . . 2 2 2 . 20 20 . . . 2 . Highest-Rated Group 806 | . . . . 40 40 40 29 15 . . . 160 160 160 . 806 806 . . . 77 . Highest-Rated Ally 80 | . . . . 16 16 16 16 5 . . . 80 80 80 . 50 50 . . . 47 . Initial Warlord ECA Mod 18 | . . . . . . . . . 5 5 4 4 9 9 18 18 18 18 18 18 17 17 Total Orders 25 | . . . . . . . . . . . . . . . . . . 7 5 . 11 2 EXPLORE 15 | . . . . . . . . . . . . . . . . . . 4 3 . 7 1 RETURN 10 | . . . . . . . . . . . . . . . . . . 3 2 . 4 1 Ally Attacks 210 | . . . . 11 . 29 10 5 . . . 5 . 10 . . 136 . . . 4 . Total Damage 4537 | . . . . 115 . 311 64 17 . . . 168 . 296 . . 3441 . . . 125 . Kills 35 | . . . . 1 . 3 1 1 . . . 3 . 1 . . 25 . . . . . Allies Corrupted 1 | . . . . . . . 1 . . . . . . . . . . . . . . . Allies Melted . | . . . . . . . . . . . . . . . . . . . . . . . Intel | -11 -10 -10 -9 -9 -9 -8 -8 -8 -8 -8 -7 -7 -6 -6 -5 -5 -5 -5 -5 -5 -4 -4 ------- Run | Yrd Mat Min Mat Min Exi Min Mat Gar Mat Sto Fac Gar Fac DSF Fac Was Fac Upp Upp Zhi Pro Fac Active Infowar (turns) 6592 | . . . . . . . . . 4 . . . . . 1215 542 809 846 640 283 1569 684 Sensors 2 | . . . . . . . . . 2 . . . . . . . . . . . . . IFF 3781 | . . . . . . . . . . . . . . . . . 15 846 640 283 1569 428 Structural 2 | . . . . . . . . . 2 . . . . . . . . . . . . . Traps 464 | . . . . . . . . . . . . . . . . . . . . . . 464 T.N.C. 613 | . . . . . . . . . . . . . . . . . 613 . . . . . Jamming 2512 | . . . . . . . . . . . . . . . 1215 542 755 . . . . . Robot Analysis Total 4 | . . . . . . . . . . . . . . . . . . . . 4 . . Derelict Logs Recovered 5 | . . 1 . 1 . . . . . . . . . . . . . . 1 . 2 . Drone Launches 18 | . . . . . . . . . . . . . . . . . . 6 4 . 7 1 Drone Recoveries 15 | . . . . . . . . . . . . . . . . . . 5 4 . 5 1 Exploration | -11 -10 -10 -9 -9 -9 -8 -8 -8 -8 -8 -7 -7 -6 -6 -5 -5 -5 -5 -5 -5 -4 -4 ------------- Run | Yrd Mat Min Mat Min Exi Min Mat Gar Mat Sto Fac Gar Fac DSF Fac Was Fac Upp Upp Zhi Pro Fac Turns Passed 24451 | 70 832 193 1150 937 1580 237 4092 1221 3196 965 337 1162 191 337 2203 554 1119 899 640 283 1569 684 Spaces Moved 9717 | 38 488 113 542 592 1052 128 1133 179 883 355 185 551 114 143 1101 281 457 392 224 150 438 178 Core 6 | 4 1 . . . . . . . . . . . . . . . . . . . . 1 Treads 5412 | 34 142 113 542 492 210 . 1053 179 679 . . . . . . 248 457 392 224 150 438 59 Legs 345 | . 345 . . . . . . . . . . . . . . . . . . . . . Wheels 3954 | . . . . 100 842 128 80 . 204 355 185 551 114 143 1101 33 . . . . . 118 Hover . | . . . . . . . . . . . . . . . . . . . . . . . Flight . | . . . . . . . . . . . . . . . . . . . . . . . Fastest Speed 50 | 50 120 160 160 115 100 160 160 280 170 170 145 145 160 145 107 107 160 160 160 160 160 130 Average Speed 190 | 148 132 160 160 152 144 160 273 280 308 170 159 152 160 158 153 167 160 160 162 160 243 247 Slowest Speed 2250 | 160 250 160 240 160 160 160 360 280 410 220 160 160 160 205 235 240 240 160 240 160 320 2250 Overloaded Moves . | . . . . . . . . . . . . . . . . . . . . . . . Propulsion Burnouts . | . . . . . . . . . . . . . . . . . . . . . . . Robots Hopped 1 | . 1 . . . . . . . . . . . . . . . . . . . . . Potential Cave-ins 4 | . . . . . . . . . . . . . . . . . 4 . . . . . Cave-ins Triggered 1 | . . . . . . . . . . . . . . . . . 1 . . . . . Exploration Rate (%) 49 | 4 73 36 32 75 84 24 81 18 49 44 6 75 4 79 21 90 16 77 91 60 89 6 Regions Visited 22 Branch Regions 9 Pre-discovered Areas 9 | . 2 . 1 . 1 . . . . 1 . . . . . . . 1 . 3 . . Known Exits Taken 5 | . . . . . . 1 1 . . . 1 . 1 . . . 1 . . . . . Unknown Exits Taken 12 | 1 1 1 1 1 1 . . . 1 1 . . . . . . . 1 1 1 1 . Scrap Searched 4 | . . . . 1 . . . . . . . . . . . . . 1 1 . 1 . Spaces Dug 82 | . . . 4 . . . 4 . 9 . 5 . 1 . 28 . 21 . 1 . 5 4 Terrain Destroyed 796 | . 7 19 59 . . . 47 123 51 112 5 39 1 1 32 . 76 . 1 . 219 4 Melee 82 | . . . 4 . . . 4 . 9 . 5 . 1 . 28 . 21 . 1 . 5 4 Projectile . | . . . . . . . . . . . . . . . . . . . . . . . AOE 714 | . 7 19 55 . . . 43 123 42 112 . 39 . 1 4 . 55 . . . 214 . Terrain Rammed . | . . . . . . . . . . . . . . . . . . . . . . . Walls Destroyed . | . . . . . . . . . . . . . . . . . . . . . . . Machines Disabled . | . . . . . . . . . . . . . . . . . . . . . . . Actions | -11 -10 -10 -9 -9 -9 -8 -8 -8 -8 -8 -7 -7 -6 -6 -5 -5 -5 -5 -5 -5 -4 -4 --------- Run | Yrd Mat Min Mat Min Exi Min Mat Gar Mat Sto Fac Gar Fac DSF Fac Was Fac Upp Upp Zhi Pro Fac Total 14267 | 47 618 119 700 617 1108 147 1906 876 1209 589 211 776 122 224 1485 366 695 619 488 189 836 320 Wait 2721 | . 36 1 59 15 9 13 507 639 142 124 6 81 . 14 149 75 93 159 244 20 261 74 Move 9696 | 37 485 112 541 591 1051 127 1133 178 882 354 184 550 113 142 1101 280 457 391 223 149 437 178 Hop 1 | . 1 . . . . . . . . . . . . . . . . . . . . . Pick Up 223 | 1 16 . 15 . 21 . 42 1 23 3 4 10 3 12 36 1 13 8 1 4 4 5 Fast Attach 146 | 6 5 . 6 3 6 . 13 . 18 8 1 5 . 10 22 2 9 7 3 6 5 11 Attach 96 | . . . 6 . . . 13 . 12 2 3 5 3 7 15 . 10 4 1 1 13 1 Detach 23 | . 2 . 2 3 . . . . 1 2 . . . 2 4 . 2 4 . . . 1 Swap 165 | 2 11 2 3 1 6 . 29 8 13 14 . 11 1 2 16 1 17 14 3 . 9 2 Drop 254 | . 14 . 6 . 11 . 45 1 35 8 3 14 1 14 54 7 11 10 4 7 7 2 Fire 198 | 1 45 3 3 . . . 9 11 6 18 . 16 . 3 3 . 6 13 7 . 54 . Melee 658 | . 3 1 59 4 4 7 114 5 77 56 10 55 1 18 85 . 77 9 2 2 23 46 Ram . | . . . . . . . . . . . . . . . . . . . . . . . Kick . | . . . . . . . . . . . . . . . . . . . . . . . Crush 1 | . . . . . . . 1 . . . . . . . . . . . . . . . Escape Stasis 26 | . . . . . . . . . . . . 26 . . . . . . . . . . Rewire 59 | . . . . . . . . 33 . . . 3 . . . . . . . . 23 . Trap . | . . . . . . . . . . . . . . . . . . . . . . . Miscellaneous . | . . . . . . . . . . . . . . . . . . . . . . . Route ------- -11/Scrapyard -10/Materials (discovered 2 exits: *Mat / [*Min]) -10/Mines (discovered 2 exits: *Mat x2) -9/Materials -9/Mines (discovered 4 exits: *Mat x2 / *Exi / [*Zio]) -9/Exiles -8/Mines -8/Materials (discovered 4 exits: *Fac x2 / *Sto / Gar) -8/Garrison -8/Materials -8/Storage -7/Factory -7/Garrison (discovered 2 exits: *Fac x2) -6/Factory -6/DSF -5/Factory -5/Waste -5/Factory (discovered 3 exits: *Fac / *Upp x2) -5/Upper Caves -5/Upper Caves (discovered 2 exits: *Fac / *Zhi) -5/Zhirov -4/Proximity Caves -4/Factory (discovered 1 exit: [*Res]) History --------- Turn | Location | Event 5 | -11/Scrapyard | Discovered new exit (range 15) 71 | -11/Scrapyard | Entered Materials 72 | -10/Materials | Met a group of wandering Federalists 314 | -10/Materials | Discovered new exit (range 12) 329 | -10/Materials | Build established: Mutant 414 | -10/Materials | Discovered new exit (range 15) 903 | -10/Materials | Entered Mines 940 | -10/Mines | Learned Materials emergency access door positions 1015 | -10/Mines | Discovered new exit (range 11) 1040 | -10/Mines | Discovered new exit (range 7) 1091 | -10/Mines | Assembled infested the area 1096 | -10/Mines | Assisted by a Guerilla fighting off Assembled 1096 | -10/Mines | Entered Materials 1096 | -9/Materials | Evolved 2 slots: Propulsion x1, Utility x1 1781 | -9/Materials | Lost 3 parts (2n1u) 1865 | -9/Materials | Discovered new exit (range 16) 2246 | -9/Materials | Entered Mines 2310 | -9/Mines | YI-UF0 nonchalantly dropped a Grenade Launcher on the ground 2328 | -9/Mines | Deemed a non-threat by the Exiles lab entrance 2328 | -9/Mines | Discovered new exit (range 5) 2460 | -9/Mines | A Derelict revealed a hidden shortcut to a safe place 2968 | -9/Mines | Identified exit to Materials 2976 | -9/Mines | Discovered exit to Materials (range 16) 3009 | -9/Mines | Assisted by bots powering up and referring to "LRC-V3" 3072 | -9/Mines | Allies destroyed YI-UF0 3183 | -9/Mines | Entered Exiles 3183 | -9/Exiles | Accompanied by 3 allies 3212 | -9/Exiles | Met 8R-AWN 3231 | -9/Exiles | Met EX-HEX 3326 | -9/Exiles | Met EX-DEC 3337 | -9/Exiles | Build established: Scavenger-Mutant 3411 | -9/Exiles | Met EX-BIN 3428 | -9/Exiles | Aligned with FarCom system 3429 | -9/Exiles | Given EX-Vault access code 3456 | -9/Exiles | Opened EX-Vault 3477 | -9/Exiles | Found Firepult 3513 | -9/Exiles | Warned to stay clear of 0b10 Research branches 3571 | -9/Exiles | Learned location of Zion (-7) 3969 | -9/Exiles | Found Prototype Storage 3969 | -9/Exiles | Identified YI-UF0's Bottomless Matter Pit 4065 | -9/Exiles | Discovered new exit (range 15) 4215 | -9/Exiles | Visited The Gauntlet 4221 | -9/Exiles | Build established: Hauler-Mutant 4763 | -9/Exiles | Left Exiles lab with Firepult 4763 | -9/Exiles | Entered Mines 4763 | -8/Mines | Accompanied by 3 allies 4935 | -8/Mines | Discovered exit to Materials (range 12) 5000 | -8/Mines | Entered Materials 5000 | -8/Materials | Accompanied by 2 allies 5000 | -8/Materials | Evolved 2 slots: Utility x1, Weapon x1 5216 | -8/Materials | Lost 3 parts (1n2w) 5235 | -8/Materials | System corruption reached 10% 7165 | -8/Materials | Discovered new exit (range 12) 8195 | -8/Materials | Discovered new exit (range 10) 8306 | -8/Materials | Discovered new exit (range 16) 8903 | -8/Materials | Repaired Humpback 9092 | -8/Materials | Identified exit to Garrison 9092 | -8/Materials | Entered Garrison 9160 | -8/Garrison | Triggered checkpoint 9228 | -8/Garrison | Discovered new exit (range 7) 9436 | -8/Garrison | Triggered checkpoint 9471 | -8/Garrison | Garrison Relay disabled 10313 | -8/Garrison | Entered Materials 10998 | -8/Materials | Build established: Hauler-Gladiator 11010 | -8/Materials | Core integrity fell below 50% 11345 | -8/Materials | Build established: Hauler-Mutant 11666 | -8/Materials | Repaired Humpback 13297 | -8/Materials | Discovered new exit (range 12) 13320 | -8/Materials | Garrison activated, responded to threat 13509 | -8/Materials | Entered Storage 13534 | -8/Storage | Learned location of Armory (-3) 13684 | -8/Storage | Garrison activated, responded to threat 13845 | -8/Storage | Destroyed 8 combat bots 13907 | -8/Storage | Repaired Humpback 14111 | -8/Storage | Discovered new exit (range 16) 14474 | -8/Storage | Entered Factory 14474 | -7/Factory | Evolved 2 slots: Propulsion x1, Utility x1 14796 | -7/Factory | Identified exit to Garrison 14811 | -7/Factory | Entered Garrison 14833 | -7/Garrison | Build established: Hauler-Gladiator 14871 | -7/Garrison | Triggered checkpoint 15017 | -7/Garrison | Garrison Relay disabled 15051 | -7/Garrison | Triggered checkpoint 15204 | -7/Garrison | Found Hvy. Reactive Plating 15251 | -7/Garrison | Triggered checkpoint 15260 | -7/Garrison | Triggered checkpoint 15264 | -7/Garrison | Triggered checkpoint 15290 | -7/Garrison | Triggered checkpoint 15300 | -7/Garrison | Destroyed 12 combat bots 15326 | -7/Garrison | Lost 3 parts (1p1n1w) 15409 | -7/Garrison | Triggered checkpoint 15480 | -7/Garrison | Garrison Relay disabled 15685 | -7/Garrison | Triggered checkpoint 15735 | -7/Garrison | Discovered new exit (range 13) 15854 | -7/Garrison | Found embedded Infiltrators 15871 | -7/Garrison | Triggered checkpoint 15894 | -7/Garrison | Garrison Relay disabled 15932 | -7/Garrison | Discovered new exit (range 14) 15960 | -7/Garrison | Garrison Relay disabled 15973 | -7/Garrison | Entered Factory 15973 | -6/Factory | Accompanied by 2 allies 15973 | -6/Factory | Evolved 2 slots: Utility x1, Weapon x1 16104 | -6/Factory | Identified exit to DSF 16164 | -6/Factory | Entered DSF 16164 | -6/DSF | Accompanied by 2 allies 16223 | -6/DSF | Additional patrols routed to DSF 16300 | -6/DSF | Lost 5 parts (1p1n2u1w) 16363 | -6/DSF | Sterilization system engaged 16383 | -6/DSF | Ambient heat levels rising (+10) 16398 | -6/DSF | Ambient heat levels rising (+10) 16413 | -6/DSF | Ambient heat levels rising (+10) 16428 | -6/DSF | Ambient heat levels rising (+10) 16440 | -6/DSF | Discovered new exit (range 15) 16443 | -6/DSF | Ambient heat levels rising (+10) 16458 | -6/DSF | Ambient heat levels rising (+10) 16473 | -6/DSF | Ambient heat levels rising (+10) 16488 | -6/DSF | Ambient heat levels rising (+10) 16501 | -6/DSF | Entered Factory 16501 | -5/Factory | Evolved 2 slots: Utility x2 17215 | -5/Factory | Cargo convoy interrupted 18407 | -5/Factory | Repaired Imp. Heavy Treads? 18540 | -5/Factory | Repaired Imp. Heavy Treads? 18601 | -5/Factory | Central database locked down 18704 | -5/Factory | Sucked down chute 18704 | -5/Factory | Entered Waste 18705 | -5/Waste | Joined by Warlord forces that had cleared the area 19045 | -5/Waste | Discovered new exit (range 16) 19050 | -5/Waste | Build established: Gladiator 19258 | -5/Waste | Entered Factory 19258 | -5/Factory | Accompanied by 20 allies 19312 | -5/Factory | Garrison activated, responded to threat 19357 | -5/Factory | Lost 3 allies 19371 | -5/Factory | Murdered 3 allies 19492 | -5/Factory | Lost 6 allies 19494 | -5/Factory | Identified exit to Upper Caves 19558 | -5/Factory | First assault squad dispatched 19565 | -5/Factory | Lost 4 allies 19656 | -5/Factory | Lost 4 allies 19740 | -5/Factory | Build established: Scavenger-Gladiator 20055 | -5/Factory | Crushed by falling debris 20055 | -5/Factory | System corruption reached 10% 20086 | -5/Factory | Lost 4 parts (3u1w) 20194 | -5/Factory | Build established: Gladiator 20376 | -5/Factory | Discovered new exit (range 9) 20377 | -5/Factory | Entered Upper Caves 20387 | -5/Upper Caves | Met a Warlord Commander 20388 | -5/Upper Caves | Learned location of Warlord (-4) 20389 | -5/Upper Caves | Warlord Commander delivered Encrypted Comm Array 20397 | -5/Upper Caves | Found Unknown Device 20397 | -5/Upper Caves | Identified Encrypted Comm Array 20403 | -5/Upper Caves | Lost 4 parts (2n2u) 20747 | -5/Upper Caves | Spotted B-75 Beast 20769 | -5/Upper Caves | Destroyed B-75 Beast 20990 | -5/Upper Caves | Attacked by a delusional Derelict stockpiling parts 21229 | -5/Upper Caves | Discovered new exit (range 16) 21276 | -5/Upper Caves | Entered another Upper Caves area 21283 | -5/Upper Caves | Discovered new exit (range 18) 21319 | -5/Upper Caves | Build established: Scavenger-Gladiator 21643 | -5/Upper Caves | Acquired the password to a Derelict Tinkerer's latest research 21738 | -5/Upper Caves | Encountered a Warlord checkpoint 21739 | -5/Upper Caves | Learned Factory non-interactive machine intel 21798 | -5/Upper Caves | Discovered new exit (range 19) 21916 | -5/Upper Caves | Entered Zhirov 21916 | -5/Zhirov | Discovered new exit (range 3) 21953 | -5/Zhirov | System corruption reached 30% 21958 | -5/Zhirov | Met Zhirov 21993 | -5/Zhirov | Learned location of Testing (-3) 22001 | -5/Zhirov | Zhirov requested help retrieving the SGEMP Prototype 22028 | -5/Zhirov | Found Alien Artifact 22028 | -5/Zhirov | Identified Integrated Reactor 22028 | -5/Zhirov | Installed Integrated Reactor, increased core energy generation (+10) 22050 | -5/Zhirov | Found Alien Artifact 22199 | -5/Zhirov | Entered Proximity Caves 22323 | -4/Proximity Caves | Learned Research terminal intel 22445 | -4/Proximity Caves | Attracted the attention of an 0b10 outpost 22488 | -4/Proximity Caves | Destroyed 11 combat bots 22651 | -4/Proximity Caves | Lost 6 parts (1p1n3u1w) 22800 | -4/Proximity Caves | Core integrity fell below 50% 22830 | -4/Proximity Caves | Lost 5 parts (2n2u1w) 23018 | -4/Proximity Caves | Attracted the attention of an 0b10 checkpoint 23044 | -4/Proximity Caves | Build established: Gladiator 23078 | -4/Proximity Caves | Lost 3 parts (1n2w) 23709 | -4/Proximity Caves | Discovered new exit (range 15) 23768 | -4/Proximity Caves | Entered Factory 23768 | -4/Factory | Evolved 2 slots: Propulsion x2 23769 | -4/Factory | Loaded intel: 214 non-interactive machine locations 24063 | -4/Factory | Garrison activated, responded to threat 24119 | -4/Factory | Lost 4 parts (2n2u) 24169 | -4/Factory | Discovered new exit (range 3) 24402 | -4/Factory | Garrison activated, responded to threat 24452 | -4/Factory | Self-destructed Last Messages --------------- 24441_ Unknown Processor melted. 24441_ P-70 Sage destroyed. 24448_ P-70 Sage Unknown Energy Gun severed. 24448_ Power Maul+ follow-up attack on P-70 Sage. 24448_ P-70 Sage suffers critical hit (Smash). 24448_ Destroyed Unknown Processor. 24448_ P-70 Sage system corrupted by crushing effect. 24448_ Power Maul+ follow-up attack on P-70 Sage. 24448_ P-70 Sage suffers critical hit (Smash). 24448_ Destroyed Unknown Power Core. 24448_ P-70 Sage system corrupted by crushing effect. 24451_ Fusion Modulator explodes. 24451_ P-70 Sage destroyed. 24451_ Fusion Modulator explodes. 24451_ G-67 Veteran destroyed. 24451_ Power Maul+ destroyed. Map ----- +----------------------------------------------------+ | ?????????????????"""?????????????????????????????? | | ?????????????????????????????????????????????????? | | ?????????????????"""??????????????????????????"""? | | ?????????????????"""??????????????????????????"""? | | ?????????????????"""??????????????????????????"""? | | ?????????????????????????????????????????????????? | | ?????????????????????????????????"""?"""?????????? | | ?????????????????????????????????"""?"""?????????? | | ?????????????????????????????????"""?"""?????????? | | ?????????????????????????????????????????????????? | | ?????????????????????????? ?????"""?"""?????????? | | ?????????????????????????? #???"""?"""?????????? | | ????""""??????????? ?##### #???"""?"""?????????? | | ????""""??????????? #???????????????????? | | ????""""???????????? g ???????????????????? | | ????""""??????"""??? g###?????????????????? | | ??????????????"""???# ;;;;;w;;;##????????????????? | | ????""""??????"""???# #; [% ! #????????????????? | | ????""""????????????# ;; #????????????????? | | ????""""????????????# ; #????????????????? | | ????""""????????????# #???????""???????? | | ????????????????????# #???????""???????? | | ????????????????????# #???????"""??????? | | ????????????????????# #???????"""??????? | | ????????Y???????????# #???????"""??????? | | ?????????????########R;;%@ = #????????????????? | | ?????????????# """" # ;;;;;;;;###????????????????? | | ?????????????# """" # %; ##??????????????????? | | ?????????????# """" # ## #???????????????????? | | ?????????????# """" #A % #?###???????????????????? | | ?????????????# +[ #???????????????????????? | | ?????????????# % #%##/#####???????????????????? | | ????????##########+##g# #???????????????????? | | ????????# ! # + p+????????????????"""? | | ????????# # # """ #????????????????"""? | | ????????# #w # """ #????????????????"""? | | ????????# + # """ #???????????????????? | | ????????# #### # #???????????????????? | | ????????# #??# ########???????????? ?????? | | ????????# #?## ##?????????????""""?! ?????? | | ????????# #?# #########?????""""? ?????? | | ????????# #?#*<% #?????""""# ?????? | | ????????#+########?# %[### #?????""""# #?????? | | ???????????????????#####?# #?????""""# #?????? | | ????????????######### #### #?????""""# #?????? | | ????????????# # #?????????# #?????? | | ????????????# # ##+##+##+## ######? | | ????????????# = ""T"" + ?? | | ????????????# """"" # #??? | | ????????????# # """ """ #??? | +----------------------------------------------------+ Best States ------------- Heat Dissipation 75 Coolant Potential 100 Energy Generation 35 Energy Capacity 690 Matter Stores 300 Matter Capacity 1800 Sight Range 16 Terrain Scan Density 10 Jamming Range 14 Base Temperature (-) 150 EM Shielding 3 Armor Coverage 900 Resistance: KI 20 Resistance: TH 25 Resistance: EM 25 Core Shielding 20 Power Shielding 66 Weapon Shielding 66 Weapon Cycling 15 Melee Speed Boost 20 Evasion (%) 55 Melee Accuracy 8 Armor Integrity Analysis 30 Recoil Reduction 4 Offensive Hacking 10 Defensive Hacking 20 Authchip Count 2 Item Schematics ----------------- Huge Storage Unit | -10/Materials | Hacked Cargo Storage Unit | -10/Materials | Hacked Humpback | -8/Materials | Scanalyzed Imp. Heavy Treads | -5/Factory | Scanalyzed Assault Drone Bay | -5/Zhirov | Free Exp. Heat Sink | -5/Zhirov | Free Exp. Optical Array | -5/Zhirov | Free Imp. Arc Thrower | -5/Zhirov | Free Robot Schematics ------------------ None Fabricated ------------ Nothing Repaired ---------- Humpback | 19% | -8/Materials Humpback | 22% | -8/Materials Humpback | 44% | -8/Storage Imp. Heavy Treads | 61% | -5/Factory Imp. Heavy Treads | 80% | -5/Factory Studied --------- Lgt. Treads | -8/Materials | Hacked Hvy. Hammer | -8/Materials | Hacked Katana | -8/Materials | Hacked Imp. Grenade Launcher | -8/Materials | Hacked Power Maul | -5/Factory | Hacked Wheel | -5/Factory | Hacked Com. Wheel | -5/Factory | Hacked Alien Tech Used ----------------- Integrated Reactor Achievements -------------- None Challenges ------------ None Game ------ Seed ReactiveQuantumRailcannon Manual? 0 Play Time 02:22:01 Cumulative 567.2 hours Start 2026.08.22 @ 17:17:22 End 2026.08.22 @ 20:01:30 Sessions 1 Manual Loads 0 Difficulty Rogue Special Mode None Game No. 483 Rogue 483 Adventurer 0 Explorer 0 Win Type - Total 16 Types 9/0/3/1/0/0/0/1/0/2 Lore% 68 Gallery% 71 Achievement% 68 Wizard Run 0 Options --------- Layout 1 ASCII 0 Keyboard 0 Movement Mouse Keybinds 0 Fullscreen 2 Font 24/Cog Map View 50x35 Zoom Use 10% Tactical HUD 1 Map Filters NONE Filters NONE Steam 1 RUN: b066ea2b-bbc7-4600-9aec-2d689a940b24